bitfinex/quotes_SOLUSD_20240824
["timestamp","ask_amount","ask_price","bid_price","bid_amount"]
[1724537981519,6.283,159.16,159.05,1.17771249]
[1724537982215,6.283,159.16,159.1,6.2853]
[1724537982417,6.2834,159.15,159.09,6.2857]
[1724537982813,6.2834,159.15,159.08,6.2861]
[1724537983523,40.46274245,159.15,159.08,6.2861]
[1724537984403,6.2838,159.14,159.08,6.2861]
[1724537985411,40.46274245,159.15,159.08,6.2861]
[1724537985915,40.46274245,159.15,159.08,6.179743]
[1724537986821,34.17934245,159.15,159.09,6.2856]
[1724537987231,6.1128,159.17,159.09,15.7134]
[1724537987406,6.1128,159.17,159.12,6.2845]
[1724537987724,6.1128,159.17,159.11,6.2849]
[1724537988023,34.17934245,159.18,159.12,6.2844]
[1724537988528,40.46174245,159.18,159.11,6.2849]
[1724537989139,40.46174245,159.18,159.12,6.2843]
[1724537989633,6.2826,159.17,159.1,6.285]
[1724537990206,6.2826,159.17,159.11,6.2848]
[1724537990402,6.2826,159.17,159.1,6.2852]
[1724537991038,16.0422,159.2,159.09,21.9991]
[1724537991039,34.17934245,159.15,159.09,21.9991]
[1724537994040,40.46274245,159.15,159.09,21.9991]
[1724537994429,34.17934245,159.15,159.09,21.9991]
[1724537994934,6.2825,159.18,159.09,15.7134]
[1724537995240,6.2827,159.17,159.11,6.2849]
[1724537997118,40.46144245,159.19,159.11,6.2849]
[1724537997437,6.2825,159.18,159.11,6.2849]
[1724537998337,6.2828,159.17,159.11,6.2849]
[1724538000515,6.2828,159.17,159.11,6.2849]
[1724538002536,16.0422,159.2,159.13,6.284]
[1724538002537,43.37634181,159.2,159.13,6.284]
[1724538002736,39.97914181,159.22,159.15,6.283]
[1724538003064,33.61424181,159.24,159.17,6.2825]
[1724538003221,33.91204181,159.26,159.18,1.25620433]
[1724538003420,33.91204181,159.26,159.15,27.42125355]
[1724538003617,6.2795,159.25,159.18,6.2819]
[1724538003817,40.19104181,159.26,159.19,6.2816]
[1724538004064,40.19104181,159.26,159.18,2.8280473]
[1724538004268,6.5779,159.26,159.2,15.7035]
[1724538004441,6.5779,159.26,159.21,6.2806]
[1724538004776,33.91204181,159.26,159.2,21.9849]
[1724538005069,40.19104181,159.26,159.2,21.9849]
[1724538005573,40.19104181,159.26,159.2,15.7035]
[1724538006158,12.8569,159.26,159.2,21.9848]
[1724538006675,6.5779,159.26,159.2,21.9848]
[1724538008540,33.61274181,159.27,159.2,21.9848]
[1724538008740,33.61274181,159.27,159.21,6.2809]
[1724538009043,33.61274181,159.27,159.2,15.7035]
[1724538009671,33.61274181,159.27,159.2,21.9847]
[1724538009868,15.6907,159.33,159.2,16.30217073]
[1724538010079,6.2775,159.3,159.23,15.7001]
[1724538011170,6.2775,159.3,159.23,21.9799]
[1724538011886,6.2775,159.3,159.24,6.2797]
[1724538012064,27.33414181,159.31,159.24,6.2797]
[1724538012389,33.61134181,159.31,159.24,6.2797]
[1724538013374,6.2775,159.3,159.24,6.2797]
[1724538013681,33.61204181,159.29,159.23,15.7001]
[1724538014060,6.2787,159.27,159.19,47.1118]
[1724538014266,33.61244181,159.28,159.21,6.2806]
[1724538014784,33.61244181,159.28,159.22,6.2805]
[1724538015166,6.2786,159.27,159.2,26.2811]
[1724538015367,6.2786,159.27,159.21,6.2808]
[1724538015567,33.61244181,159.28,159.21,6.2808]
[1724538016476,27.33414181,159.28,159.22,6.2802]
[1724538016678,33.61244181,159.28,159.22,6.2802]
[1724538018779,45.0,159.33,159.22,15.7014]
[1724538018980,27.28817686,159.3,159.23,6.2802]
[1724538019184,51.2779,159.29,159.22,15.7014]
[1724538019989,51.2779,159.29,159.22,21.9818]
[1724538020199,27.28817686,159.28,159.22,21.9818]
[1724538020381,33.56657686,159.28,159.22,15.7014]
[1724538024697,33.56657686,159.28,159.22,21.9819]
[1724538025095,33.56657686,159.28,159.15,31.415]
[1724538025096,27.28817686,159.24,159.15,31.415]
[1724538025397,6.1641,159.26,159.08,259.8]
[1724538025398,27.28817686,159.19,159.16,30.0]
[1724538026098,27.28817686,159.19,159.15,6.2832]
[1724538026392,27.28817686,159.19,159.14,6.2837]
[1724538026703,27.28817686,159.15,159.08,6.6047]
[1724538026867,27.28817686,159.13,159.09,6.2856]
[1724538027380,27.28817686,159.13,159.09,7.8583836]
[1724538027579,27.28817686,159.13,159.09,6.2856]
[1724538028080,27.28817686,159.13,159.1,6.2852]
[1724538028280,6.2822,159.18,159.11,6.2848]
[1724538028503,27.28817686,159.16,159.11,6.2848]
[1724538028997,27.28817686,159.16,159.1,6.2853]
[1724538029172,27.28817686,159.14,159.1,6.2853]
[1724538029372,27.28817686,159.16,159.1,6.2853]
[1724538031207,6.2826,159.17,159.1,6.2853]
[1724538031384,27.28817686,159.15,159.1,6.2853]
[1724538032276,27.28817686,159.15,159.09,15.7143]
[1724538032476,27.28817686,159.13,159.09,15.7143]
[1724538032997,27.28817686,159.13,159.09,21.9999]
[1724538033189,27.28817686,159.13,159.06,22.0037]
[1724538033395,27.28817686,159.13,159.06,15.7172]
[1724538033709,27.28817686,159.13,159.07,1.25713285]
[1724538034005,27.28817686,159.15,159.07,1.25713285]
[1724538034205,27.28817686,159.15,159.09,6.2857]
[1724538035081,33.57157686,159.15,159.09,6.2857]
[1724538035810,33.57157686,159.15,159.08,6.2861]
[1724538036801,6.2282,159.21,159.09,15.7142]
[1724538037003,6.2818,159.19,159.12,6.2845]
[1724538038379,6.2282,159.21,159.12,6.2845]
[1724538038380,6.2282,159.21,159.15,6.2833]
[1724538038602,42.93497686,159.22,159.18,6.2821]
[1724538038603,15.6468,159.22,159.18,6.2821]
[1724538038808,15.6468,159.22,159.1,27.28817686]
[1724538039107,27.28817686,159.24,159.17,21.9879]
[1724538040191,6.2802,159.23,159.17,21.9879]
[1724538041992,6.2802,159.23,159.17,15.7055]
[1724538042806,33.5363543,159.25,159.11,72.3081543]
[1724538042807,6.2282,159.29,159.2,15.7029]
[1724538042981,27.3081543,159.28,159.2,15.7029]
[1724538043708,6.2282,159.29,159.2,15.7029]
[1724538043909,12.506,159.29,159.23,6.2801]
[1724538044117,12.506,159.29,159.22,6.2805]
[1724538044486,15.6468,159.31,159.15,6.3744]
[1724538044487,21.9239,159.31,159.24,15.6995]
[1724538045604,6.2774,159.3,159.24,21.9792]
[1724538047108,6.278,159.29,159.2,15.7026]
[1724538047412,27.3081543,159.3,159.23,15.7003]
[1724538047912,27.3081543,159.3,159.23,21.9801]
[1724538048089,33.5857543,159.3,159.23,21.9801]
[1724538048808,33.5857543,159.3,159.24,6.2797]
[1724538049185,27.3081543,159.3,159.23,15.7003]
[1724538049518,27.3081543,159.28,159.23,15.7003]
[1724538050118,27.3081543,159.26,159.19,15.7035]
[1724538051211,6.2794,159.25,159.19,15.7035]
[1724538051621,6.2794,159.25,159.19,21.9852]
[1724538051926,6.2794,159.25,159.19,15.7035]
[1724538052116,6.2794,159.25,159.19,21.9852]
[1724538053104,27.3081543,159.26,159.2,6.2813]
[1724538053310,27.3081543,159.26,159.2,7.53739131]
[1724538053712,33.5871543,159.26,159.2,6.2813]
[1724538054224,33.5871543,159.26,159.19,21.9852]
[1724538054602,6.2804,159.23,159.15,15.7076]
[1724538054925,33.5888543,159.22,159.16,6.2829]
[1724538055128,27.3081543,159.2,159.12,15.7112]
[1724538055545,27.3081543,159.18,159.12,15.7112]
[1724538055828,27.3081543,159.16,159.08,15.7144]
[1724538056032,27.3081543,159.16,159.1,6.2852]
[1724538056717,26.8081543,159.16,159.1,6.2852]
[1724538057231,6.2842,159.13,159.04,15.7183]
[1724538057440,6.2841,159.13,159.07,6.2862]
[1724538057738,27.3081543,159.14,159.08,6.286]
[1724538057939,27.3081543,159.14,159.08,7.85898763]
[1724538058536,33.5919543,159.14,159.07,22.0025]
[1724538058842,33.3441543,159.12,159.03,15.72]
[1724538059135,33.3441543,159.12,159.04,1.57304271]
[1724538059310,27.3081543,159.1,159.04,1.57304271]
[1724538059817,27.3081543,159.1,159.04,7.86054271]
[1724538060216,27.3081543,159.1,159.04,6.2875]
[1724538060414,27.3081543,159.1,159.04,1.5732468]
[1724538060723,27.3081543,159.08,159.02,6.2883]
[1724538061313,6.2851,159.11,159.03,6.2879]
[1724538061517,27.3081543,159.1,159.03,6.2879]
[1724538063235,49.3381543,159.12,159.06,15.7171]
[1724538063441,55.6226543,159.12,159.06,15.7171]
[1724538063740,27.3081543,159.1,159.02,15.7205]
[1724538064418,27.3081543,159.08,159.02,15.7205]
[1724538065118,27.3081543,159.06,159.01,0.3270904]
[1724538065431,27.3081543,159.04,159.01,0.3270904]
[1724538065627,27.3081543,159.03,159.01,0.3270904]
[1724538066354,6.2885,159.02,159.01,0.3270904]
[1724538066517,22.03,159.03,159.01,0.3270904]
[1724538068747,6.2869,159.07,159.01,0.3270904]
[1724538069039,49.3381543,159.08,159.01,0.3270904]
[1724538069228,55.6242543,159.08,159.02,6.2884]
[1724538069423,55.6242543,159.08,159.01,6.6159904]
[1724538071744,55.6242543,159.08,159.02,1.2575533]
[1724538071963,6.3372,159.13,159.09,6.2856]
[1724538072650,33.6453543,159.13,159.06,15.717]
[1724538072952,27.3081543,159.11,159.06,15.717]
[1724538073148,39.9296543,159.13,159.06,22.0037]
[1724538073749,33.6453543,159.13,159.07,6.2864]
[1724538075426,39.9294543,159.13,159.07,6.2864]
[1724538076137,6.2846,159.12,159.06,15.717]
[1724538076340,6.2846,159.12,159.05,6.2873]
[1724538078149,6.2849,159.11,159.05,6.2873]
[1724538079149,33.6453543,159.13,159.06,6.2868]
[1724538079357,39.9295543,159.13,159.06,6.2868]
[1724538080365,6.3372,159.13,159.07,1.2571961]
[1724538080532,6.3372,159.13,159.03,27.3081543]
[1724538080728,6.3372,159.13,159.09,21.9999]
[1724538082342,16.1772,159.14,159.12,6.2842]
[1724538082540,16.1772,159.14,159.09,15.7142]
[1724538083253,16.1772,159.14,159.1,6.2853]
[1724538083552,16.1772,159.14,159.09,21.9999]
[1724538083764,16.1772,159.14,159.09,15.7142]
[1724538084462,22.461,159.14,159.09,15.7142]
[1724538084959,22.461,159.14,159.05,15.7176]
[1724538084960,27.3081543,159.11,159.05,15.7176]
[1724538085332,6.2854,159.1,159.03,6.2881]
[1724538085635,33.5930543,159.11,159.03,6.2878]
[1724538085954,33.5930543,159.11,159.03,15.7193]
[1724538086757,33.5930543,159.11,159.03,22.007]
[1724538086963,33.5930543,159.11,159.04,6.2877]
[1724538088370,27.3081543,159.09,159.01,0.3270904]
[1724538088541,27.3081543,159.07,159.01,0.3270904]
[1724538088742,27.3081543,159.07,159.01,6.6156904]
[1724538088945,27.3081543,159.07,159.03,6.288]
[1724538089150,33.5939543,159.09,159.03,6.288]
[1724538089755,27.3081543,159.07,159.01,0.3270904]
[1724538089946,27.3081543,159.05,159.01,6.6158904]
[1724538091339,6.2877,159.04,159.01,0.3270904]
[1724538091547,33.5962543,159.03,159.01,0.3270904]
[1724538091767,6.2885,159.02,159.01,0.3270904]
[1724538092272,27.3081543,159.03,158.93,6.2917]
[1724538092448,33.3293543,158.98,158.92,22.0234]
[1724538092645,6.0212,158.98,158.93,6.292]
[1724538092847,27.3081543,159.0,158.92,15.7311]
[1724538093067,22.0299,159.02,158.9,31.466]
[1724538093068,22.0299,159.02,158.95,15.7279]
[1724538093375,28.3184,159.02,158.95,15.7279]
[1724538093566,27.3081543,159.01,158.95,15.7279]
[1724538094159,27.3081543,159.01,158.95,22.0191]
[1724538094678,27.3081543,158.99,158.94,6.2915]
[1724538095183,27.3081543,159.01,158.95,7.54936682]
[1724538095478,27.3081543,159.01,158.96,1.25804588]
[1724538095655,27.3081543,159.01,158.95,5.7912]
[1724538096049,33.5970543,159.01,158.94,15.7289]
[1724538096252,33.5970543,159.01,158.94,22.0204]
[1724538097262,27.3081543,158.99,158.93,6.2919]
[1724538097855,27.3081543,158.97,158.93,6.2919]
[1724538098165,27.3081543,158.97,158.91,7.86696778]
[1724538099049,27.3081543,158.97,158.91,1.57446778]
[1724538099251,27.3081543,158.93,158.86,275.5363]
[1724538099473,27.3081543,158.93,158.88,6.2937]
[1724538100181,27.3081543,158.93,158.88,6.2939]
[1724538100862,43.3168543,158.93,158.86,15.7363]
[1724538101377,16.0087,158.93,158.86,16.99506978]
[1724538101580,6.0212,158.94,158.86,16.99506978]
[1724538102256,6.0212,158.94,158.89,6.2936]
[1724538103773,27.3081543,158.97,158.91,6.2928]
[1724538103977,28.32,158.98,158.91,6.2928]
[1724538104276,22.0299,158.98,158.93,6.2916]
[1724538104473,22.0299,158.98,158.93,22.0208]
[1724538104774,27.3081543,159.01,158.95,6.2912]
[1724538105176,33.5970543,159.01,158.95,6.2912]
[1724538105397,6.2894,159.0,158.93,22.0209]
[1724538105585,6.2894,159.0,158.94,6.2916]
[1724538105759,6.0212,159.02,158.95,1.25817527]
[1724538105960,16.0087,159.03,158.96,1.25783952]
[1724538106258,6.0212,159.06,159.01,6.2888]
[1724538106456,6.0212,159.06,159.02,6.2884]
[1724538106673,6.0212,159.06,159.0,6.289]
[1724538108560,6.0212,159.06,159.01,6.2887]
[1724538108978,6.0212,159.06,159.0,6.2892]
[1724538109177,6.2874,159.05,158.99,15.724]
[1724538110086,6.2874,159.05,158.99,22.0136]
[1724538110865,6.0212,159.06,158.99,22.0136]
[1724538111081,12.3081,159.06,158.99,22.0136]
[1724538111582,6.2874,159.05,158.99,15.724]
[1724538112095,6.2874,159.05,158.99,22.0136]
[1724538112794,6.0212,159.06,159.0,7.54700945]
[1724538112998,6.0212,159.06,159.01,6.2885]
[1724538113296,6.0212,159.06,159.0,6.2892]
[1724538113473,12.3081,159.06,158.99,22.0136]
[1724538113993,6.2873,159.05,158.99,15.724]
[1724538114291,34.20387768,159.04,158.99,15.724]
[1724538115693,34.20387768,159.04,158.96,35.7272]
[1724538115873,6.2881,159.03,158.97,6.2904]
[1724538116781,40.49157768,159.04,158.97,6.2904]
[1724538116969,6.0212,159.06,158.98,7.54793594]
[1724538116970,12.3084,159.06,158.98,7.54793594]
[1724538117278,45.0,159.05,158.98,6.29]
[1724538117483,51.2874,159.05,158.98,6.29]
[1724538119701,40.49177768,159.04,158.96,42.0176]
[1724538119989,40.49177768,159.04,158.97,6.2903]
[1724538121493,51.2873,159.05,158.99,6.2896]
[1724538122200,6.0212,159.06,159.0,1.25783088]
[1724538122674,6.0212,159.06,159.0,6.2892]
[1724538122875,12.3081,159.06,159.0,6.2892]
[1724538123075,12.3081,159.06,158.98,15.7244]
[1724538123076,12.3081,159.06,158.99,6.2896]
[1724538123277,6.2873,159.05,158.99,6.2896]
[1724538123981,6.0212,159.06,159.01,15.7222]
[1724538124678,6.0212,159.06,158.99,6.2893]
[1724538124995,12.3081,159.06,158.99,6.2893]
[1724538125380,34.20387768,159.04,158.98,22.0152]
[1724538125582,6.2881,159.03,158.96,26.2905]
[1724538125787,40.49307768,159.01,158.95,15.728]
[1724538126301,15.7746,158.99,158.93,6.2916]
[1724538126501,43.1721186,158.99,158.93,6.2916]
[1724538126683,43.1721186,158.99,158.94,6.2915]
[1724538127005,6.5058,158.98,158.92,22.0233]
[1724538128406,27.3975186,158.97,158.88,15.7342]
[1724538128607,27.3975186,158.97,158.89,20.0]
[1724538128907,33.6880186,158.97,158.89,20.0]
[1724538129078,6.5058,158.98,158.92,6.2923]
[1724538129282,6.5058,158.98,158.93,7.55027665]
[1724538129887,15.7746,158.99,158.93,1.25827665]
[1724538130098,6.5058,159.02,158.96,6.2908]
[1724538130413,6.5058,159.02,158.96,22.0178]
[1724538130906,12.7943,159.02,158.96,22.0178]
[1724538131110,6.5058,159.02,158.97,6.2904]
[1724538131299,6.5058,159.02,158.96,15.727]
[1724538131695,6.5058,159.02,158.98,6.29]
[1724538135380,15.7746,159.03,158.99,7.54745624]
[1724538135613,15.7746,159.03,158.99,6.2896]
[1724538135814,15.7746,159.03,158.98,6.29]
[1724538136307,43.1721186,159.03,158.98,6.29]
[1724538137509,49.4602186,159.03,158.96,22.0175]
[1724538138201,51.2886,159.02,158.96,22.0175]
[1724538139399,51.2886,159.02,158.96,15.727]
[1724538139400,6.2889,159.01,158.96,15.727]
[1724538140091,33.6864186,159.01,158.95,6.2911]
[1724538140291,27.3975186,158.99,158.93,22.0216]
[1724538141301,33.6872186,158.99,158.93,22.0216]
[1724538141699,6.1658,158.98,158.93,22.0216]
[1724538143122,6.1658,158.98,158.93,15.73]
[1724538143319,12.4561,158.98,158.91,6.2928]
[1724538143523,12.4561,158.98,158.92,6.2923]
[1724538143524,39.8536186,158.98,158.92,6.2923]
[1724538146933,6.1658,158.98,158.93,1.25830867]
[1724538147223,6.1658,159.02,158.97,6.2904]
[1724538147441,6.1658,159.02,158.98,6.2899]
[1724538147798,6.1658,159.02,159.0,6.2889]
[1724538148016,15.7746,159.03,159.0,6.2889]
[1724538148926,15.7746,159.03,158.98,22.014]
[1724538152504,15.7746,159.03,158.99,6.2895]
[1724538154329,15.7746,159.03,158.98,15.7243]
[1724538154635,15.7746,159.03,158.99,6.2897]
[1724538155804,15.7746,159.03,158.98,22.0143]
[1724538156001,6.2885,159.02,158.96,6.2908]
[1724538156426,22.0627,159.03,158.96,6.2908]
[1724538158135,22.0627,159.03,158.97,6.2904]
[1724538158330,27.3975186,159.02,158.95,15.7279]
[1724538158521,6.2898,158.99,158.91,47.1951]
[1724538158830,6.3088,158.97,158.92,2.90335188]
[1724538159129,6.3088,158.97,158.91,22.0247]
[1724538159332,6.3088,158.97,158.92,6.2924]
[1724538161525,6.3088,158.97,158.93,6.292]
[1724538161711,6.2707,159.01,158.94,16.98667935]
[1724538162027,6.2707,159.01,158.94,15.7285]
[1724538162433,12.5596,159.01,158.95,6.2912]
[1724538163138,6.2707,159.01,158.95,6.2912]
[1724538163609,6.2707,159.01,158.94,22.0201]
[1724538164006,33.6682186,159.01,158.94,22.0201]
[1724538166034,6.2707,159.01,158.95,1.25813989]
[1724538166444,6.2707,159.01,158.94,15.7285]
[1724538167230,6.2707,159.01,158.96,6.2908]
[1724538167619,6.2707,159.01,158.92,27.3975186]
[1724538167620,6.2707,159.01,158.97,22.0166]
[1724538168347,6.2707,159.01,158.9,31.4655]
[1724538168348,39.9572186,159.01,158.93,22.0209]
[1724538168517,6.2894,159.0,158.93,15.7292]
[1724538168842,6.2894,159.0,158.93,22.0208]
[1724538169025,6.2894,159.0,158.94,6.2915]
[1724538169429,33.6872186,158.99,158.93,15.7292]
[1724538171336,33.6872186,158.99,158.93,22.0212]
[1724538171951,33.6872186,158.99,158.93,15.7292]
[1724538172132,27.3975186,158.99,158.91,6.2928]
[1724538172444,51.2901,158.98,158.91,6.2928]
[1724538173023,45.0,158.98,158.92,6.292]
[1724538173240,33.6872186,158.99,158.92,7.55025765]
[1724538173548,33.6872186,158.99,158.92,6.292]
[1724538173748,33.6872186,158.99,158.93,6.292]
[1724538175430,27.3975186,158.99,158.93,22.0218]
[1724538175743,6.2896,159.0,158.94,7.54987781]
[1724538176049,33.6682186,159.01,158.95,6.2912]
[1724538176823,39.9574186,159.01,158.94,6.2916]
[1724538177030,27.3975186,158.99,158.93,22.0218]
[1724538177746,6.2902,158.98,158.93,15.7298]
[1724538179023,33.6872186,158.99,158.93,15.7298]
[1724538182952,27.3975186,158.99,158.91,6.2928]
[1724538183132,27.3975186,158.97,158.91,6.2928]
[1724538184154,33.6880186,158.97,158.91,6.2928]
[1724538184363,27.3975186,158.97,158.92,6.2924]
[1724538185763,6.2909,158.96,158.9,6.2929]
[1724538187334,21.936,158.95,158.89,22.0268]
[1724538187541,6.6222,158.94,158.85,48.0275703]
[1724538187742,27.3975186,158.93,158.86,4.60088479]
[1724538187941,33.6896186,158.93,158.87,6.2941]
[1724538188865,6.2926,158.92,158.85,16.5526703]
[1724538189166,27.3975186,158.93,158.85,16.5526703]
[1724538189351,45.0,158.92,158.85,16.5526703]
[1724538190244,51.2925,158.92,158.86,6.2947]
[1724538191751,51.2925,158.92,158.85,16.5526703]
[1724538191752,6.2921,158.93,158.87,6.2943]
[1724538195344,12.9139,158.94,158.88,6.2939]
[1724538196545,10.9652637,158.93,158.88,6.2939]
[1724538196864,15.6447,158.95,158.89,1.25866261]
[1724538197073,15.6447,158.95,158.9,6.2931]
[1724538197258,15.6447,158.95,158.9,7.55157834]
[1724538197561,6.1779,158.98,158.91,15.7314]
[1724538197768,26.8641637,159.0,158.86,6.0387]
[1724538197769,15.8989,159.0,158.97,6.2904]
[1724538197988,15.8989,159.0,158.97,22.0158]
[1724538198139,17.1431637,159.03,158.97,22.0158]
[1724538198140,6.1779,159.03,159.0,6.2892]
[1724538198344,15.8989,159.04,159.0,6.2892]
[1724538198769,15.8989,159.04,158.97,15.7254]
[1724538198770,22.1867,159.04,158.97,15.7254]
[1724538199145,15.8989,159.04,158.97,15.7254]
[1724538199368,15.8989,159.04,158.99,6.2896]
[1724538201096,49.55387512,159.04,158.97,22.0156]
[1724538201694,49.55387512,159.04,158.95,6.2909]
[1724538201695,27.36727512,159.02,158.95,6.2909]
[1724538201896,45.0,159.01,158.95,6.2909]
[1724538202792,45.0,159.01,158.96,6.2908]
[1724538203199,45.0,159.01,158.93,15.7294]
[1724538203373,6.1779,159.0,158.93,15.7294]
[1724538203575,12.4675,159.0,158.93,22.0213]
[1724538203982,12.4675,159.0,158.94,6.2916]
[1724538204192,51.2897,158.99,158.93,15.7294]
[1724538205778,6.2901,158.98,158.93,15.7294]
[1724538206871,6.291,158.96,158.89,15.7331]
[1724538207080,22.1895,158.97,158.89,15.7331]
[1724538208285,22.1895,158.97,158.91,6.2928]
[1724538208986,15.8989,158.97,158.91,6.2928]
[1724538209187,15.8989,158.97,158.92,6.2924]
[1724538210535,15.8989,158.97,158.93,6.292]
[1724538210712,15.8989,158.97,158.91,15.7312]
[1724538211004,15.8989,158.97,158.93,6.292]
[1724538212504,15.8989,158.97,158.94,6.2913]
[1724538212802,15.8989,158.97,158.95,6.2912]
[1724538214294,15.8989,158.97,158.94,6.2916]
[1724538214493,15.8989,158.97,158.93,22.0213]
[1724538214694,15.8989,158.97,158.86,14.8372]
[1724538214695,15.8989,158.97,158.89,15.7332]
[1724538214900,15.8989,158.97,158.92,6.2923]
[1724538217215,15.8989,158.97,158.93,6.2919]
[1724538219100,15.8989,158.97,158.92,15.7311]
[1724538219498,6.2912,158.95,158.89,22.0273]
[1724538219727,78.65817512,158.96,158.9,6.2932]
[1724538220425,12.8201,158.93,158.87,6.2941]
[1724538223315,12.8202,158.93,158.87,6.2941]
[1724538224032,98.65977512,158.92,158.85,16.5527703]
[1724538225403,98.65977512,158.92,158.86,6.2948]
[1724538226209,21.9028,158.91,158.85,16.5527703]
[1724538226410,15.6099,158.91,158.85,16.5527703]
[1724538227326,15.6099,158.91,158.86,6.2947]
[1724538228506,26.5790896,158.91,158.86,6.2947]
[1724538228707,10.9691896,158.89,158.85,0.8155703]
[1724538229228,17.2631896,158.89,158.85,0.8155703]
[1724538230215,10.9691896,158.87,158.85,0.8155703]
[1724538230421,33.72893027,158.89,158.85,0.8155703]
[1724538233517,45.0,158.9,158.85,0.8155703]
[1724538234412,51.2935,158.9,158.85,0.8155703]
[1724538234732,27.43493027,158.89,158.85,0.8155703]
[1724538237219,33.72853027,158.89,158.85,0.8155703]
[1724538237435,6.2943,158.88,158.85,0.8155703]
[1724538237620,27.43493027,158.87,158.85,0.8155703]
[1724538237824,27.43493027,158.89,158.85,0.8155703]
[1724538238021,45.0,158.88,158.85,0.8155703]
[1724538238908,51.294,158.88,158.85,0.8155703]
[1724538239140,6.294,158.88,158.85,0.8155703]
[1724538240141,78.72943027,158.87,158.85,0.8155703]
[1724538241119,6.2948,158.86,158.85,0.8155703]
[1724538242025,12.3676,158.86,158.85,0.8155703]
[1724538242248,77.3676,158.86,158.85,0.8155703]
[1724538244397,6.2992,158.75,158.69,0.8155703]
[1724538244686,27.43493027,158.74,158.69,0.8155703]
[1724538244853,65.0,158.76,158.69,7.1169703]
[1724538245055,45.0,158.76,158.7,6.301]
[1724538245257,49.37583027,158.8,158.72,6.3001]
[1724538245457,65.0,158.79,158.72,6.3001]
[1724538245893,65.0,158.79,158.73,6.2998]
[1724538246193,65.0,158.79,158.7,22.0536]
[1724538246194,71.2977,158.79,158.7,22.0536]
[1724538246364,65.0,158.79,158.72,6.3002]
[1724538246872,21.9409,158.8,158.74,15.7487]
[1724538247076,21.9409,158.8,158.75,1.25965215]
[1724538247277,21.9409,158.8,158.74,15.7487]
[1724538247867,21.9409,158.8,158.75,6.299]
[1724538248286,21.9409,158.8,158.75,7.55874133]
[1724538248496,49.37583027,158.84,158.75,7.55874133]
[1724538248680,65.0,158.83,158.75,7.55874133]
[1724538249603,21.9409,158.84,158.75,1.25974133]
[1724538249772,21.9409,158.84,158.75,20.0]
[1724538250097,55.66993027,158.88,158.78,15.7447]
[1724538250275,6.2945,158.87,158.78,22.0424]
[1724538250584,27.43493027,158.86,158.78,22.0424]
[1724538250774,6.2945,158.87,158.78,22.0424]
[1724538250971,6.2945,158.87,158.79,6.2974]
[1724538251170,45.0,158.86,158.79,6.2974]
[1724538251784,72.43493027,158.86,158.78,15.7447]
[1724538253200,72.43493027,158.86,158.78,22.0426]
[1724538253794,20.0,158.85,158.78,22.0426]
[1724538254105,72.43493027,158.84,158.78,15.7447]
[1724538254508,10.97982692,158.83,158.78,15.7447]
[1724538254807,45.0,158.82,158.78,15.7447]
[1724538255185,45.0,158.82,158.76,6.2984]
[1724538255807,45.0,158.82,158.77,6.2983]
[1724538256490,45.0,158.82,158.75,6.2989]
[1724538256694,45.0,158.83,158.75,6.2989]
[1724538256894,45.0,158.83,158.76,6.2987]
[1724538258582,45.0,158.83,158.74,15.7488]
[1724538258583,33.74841783,158.82,158.74,22.0481]
[1724538258783,45.0,158.81,158.74,22.0481]
[1724538259998,45.0,158.81,158.75,1.25977398]
[1724538260317,20.0,158.85,158.76,6.2984]
[1724538260495,45.0,158.84,158.76,6.2984]
[1724538260810,20.0,158.83,158.76,6.2984]
[1724538260989,45.0,158.82,158.76,6.2984]
[1724538261915,20.0,158.83,158.77,6.2982]
[1724538262119,6.2954,158.85,158.79,6.2975]
[1724538262120,6.2952,158.85,158.79,6.2975]
[1724538262294,21.9409,158.88,158.81,6.2967]
[1724538262621,21.9409,158.88,158.8,15.7427]